bitfinex/quotes_ETHUSD_20241130
["timestamp","ask_amount","ask_price","bid_price","bid_amount"]
[1732940171273,0.55,3654.4,3653.1,1.5348]
[1732940172563,1.89204472,3654.1,3653.1,1.5348]
[1732940172770,0.54286723,3653.3,3653.0,1.583402]
[1732940174482,1.89527897,3653.2,3652.1,1.095211]
[1732940174683,0.55,3653.0,3650.9,2.10131105]
[1732940174979,0.55,3652.8,3651.4,1.095484]
[1732940176104,2.10131105,3652.6,3650.5,2.10131105]
[1732940176262,2.1084,3652.5,3650.5,2.10131105]
[1732940176463,2.1084,3652.5,3650.9,1.095678]
[1732940176668,0.55,3652.3,3650.9,1.095678]
[1732940176982,0.55,3652.3,3650.1,2.38616235]
[1732940177185,2.10131105,3652.2,3650.1,2.38616235]
[1732940177359,0.55,3652.1,3650.2,1.095742]
[1732940177561,0.55,3652.1,3650.3,1.5348]
[1732940178397,0.55,3651.9,3650.3,1.5348]
[1732940178807,0.14199531,3651.8,3650.3,1.5348]
[1732940178974,1.5584,3652.0,3650.3,1.5348]
[1732940178975,0.55,3651.9,3650.3,1.5348]
[1732940179364,0.55,3652.1,3650.3,1.5348]
[1732940179778,0.55499094,3651.3,3650.4,0.53943147]
[1732940180103,0.55,3652.1,3650.5,1.5348]
[1732940180398,1.02892228,3652.1,3650.5,1.5348]
[1732940183107,0.55,3651.9,3650.5,1.5348]
[1732940183268,0.55345691,3651.3,3650.5,1.5348]
[1732940184699,0.55,3651.2,3650.5,1.5348]
[1732940186967,0.55,3651.2,3650.2,1.5348]
[1732940187689,0.55,3651.3,3650.2,1.5348]
[1732940188700,1.5059,3651.1,3650.2,1.5348]
[1732940188901,0.55,3651.0,3650.2,1.5348]
[1732940189218,0.55,3651.0,3650.3,0.01369487]
[1732940189367,0.55292063,3650.7,3650.3,0.01369487]
[1732940189706,0.55292063,3650.7,3650.2,1.5348]
[1732940190582,0.55,3650.6,3649.9,1.5906]
[1732940192169,0.55,3650.6,3649.1,0.56525713]
[1732940192170,0.81088206,3650.6,3649.6,1.5906]
[1732940192506,0.55,3650.6,3649.6,1.5906]
[1732940195171,0.55,3650.4,3649.3,1.5376]
[1732940195614,0.55,3650.2,3649.3,1.5376]
[1732940198313,0.55,3650.2,3649.4,0.01371068]
[1732940198520,0.55,3650.2,3649.4,0.28781068]
[1732940198670,1.09711312,3650.2,3649.4,0.28781068]
[1732940198879,1.6469,3650.1,3649.3,1.5376]
[1732940199077,0.55,3650.0,3649.0,1.8117]
[1732940199579,1.6469,3649.7,3649.0,0.2741]
[1732940199808,0.55,3649.6,3649.0,0.2741]
[1732940200119,0.55,3649.4,3648.9,1.096311]
[1732940200272,0.55,3649.4,3648.5,0.01372527]
[1732940200479,0.55,3649.4,3648.4,1.5376]
[1732940202114,0.55,3649.2,3648.1,1.5376]
[1732940202319,0.21969,3649.4,3648.1,1.5376]
[1732940202320,0.55,3649.0,3648.1,1.5376]
[1732940203130,0.55,3649.0,3648.1,1.55133204]
[1732940203475,0.55,3649.0,3648.1,1.5376]
[1732940204112,0.55,3649.0,3648.2,0.01373258]
[1732940204318,0.55,3649.0,3648.1,1.5376]
[1732940204684,0.55,3649.0,3648.2,0.0137326]
[1732940204916,0.55,3649.0,3648.1,1.5376]
[1732940205294,0.55,3649.0,3648.2,0.01373274]
[1732940206205,0.55,3649.0,3647.8,1.55133607]
[1732940206385,0.77969,3649.0,3647.8,1.55133607]
[1732940206591,1.6469,3648.9,3647.8,1.5376]
[1732940206813,0.55,3648.8,3647.8,1.5376]
[1732940207017,0.55,3648.8,3647.5,1.5376]
[1732940207018,0.55,3648.6,3647.5,1.5376]
[1732940207183,0.55,3648.6,3647.6,0.01374293]
[1732940207708,0.55,3648.6,3647.5,1.5376]
[1732940207914,0.55,3648.4,3647.5,1.5376]
[1732940208221,0.55,3648.4,3647.2,1.6035]
[1732940208424,0.55,3648.2,3647.2,1.6035]
[1732940208735,1.626,3648.1,3647.0,1.096876]
[1732940208903,0.55,3648.0,3646.9,1.61725128]
[1732940209236,0.55,3647.8,3646.9,1.6035]
[1732940209597,0.55,3647.8,3646.3,2.16032278]
[1732940209788,0.55,3647.8,3646.6,1.097005]
[1732940210212,0.55,3647.8,3646.7,0.01375648]
[1732940210420,0.55,3647.8,3646.6,1.097005]
[1732940210807,2.176,3647.9,3646.6,1.097005]
[1732940211016,0.55,3647.7,3646.6,1.097005]
[1732940211185,0.46049111,3647.9,3646.6,1.097005]
[1732940211186,0.55,3647.5,3646.6,1.097005]
[1732940211387,1.626,3647.6,3646.3,1.6035]
[1732940211625,1.626,3647.6,3646.4,1.09702]
[1732940213128,1.626,3647.6,3646.3,1.61726279]
[1732940213329,1.626,3647.4,3646.3,1.097113]
[1732940213500,0.55,3647.3,3646.0,1.6035]
[1732940213907,0.55,3647.1,3646.1,1.097128]
[1732940214319,1.626,3647.1,3646.1,1.097128]
[1732940214694,0.55,3647.4,3645.0,100.0]
[1732940214695,0.55,3646.8,3645.4,1.6035]
[1732940214933,0.55,3646.8,3645.6,1.097326]
[1732940215134,0.55,3646.6,3645.6,1.097326]
[1732940215301,0.55,3646.6,3645.4,1.6035]
[1732940215497,0.55,3646.6,3645.5,1.097342]
[1732940215912,1.626,3646.8,3645.5,1.097342]
[1732940216129,1.626,3646.6,3645.5,1.097342]
[1732940216736,0.55,3646.5,3645.4,1.6035]
[1732940217146,0.55,3646.5,3645.4,2.700876]
[1732940217710,0.55,3646.5,3645.4,1.6035]
[1732940218329,1.626,3646.2,3645.3,1.097405]
[1732940218504,0.55,3646.1,3645.1,1.6035]
[1732940218699,0.55,3646.1,3646.0,2.74273]
[1732940221448,2.176,3646.1,3646.0,2.74273]
[1732940222210,1.626,3646.0,3645.8,2.74282]
[1732940222417,0.55,3645.9,3645.8,2.74282]
[1732940223413,0.58428509,3645.9,3645.6,2.74302]
[1732940223611,1.626,3645.8,3645.7,2.74295]
[1732940223912,2.176,3645.8,3645.7,2.74295]
[1732940224814,0.34214865,3647.0,3646.9,2.74205]
[1732940225014,1.27436352,3647.0,3646.9,2.74205]
[1732940225312,1.27436352,3647.0,3645.8,2.74288]
[1732940225313,0.1,3646.7,3646.5,2.74234]
[1732940225511,0.1,3646.7,3646.5,2.74235]
[1732940225512,1.55,3646.6,3646.5,2.74235]
[1732940226360,0.93270228,3646.6,3646.5,2.74235]
[1732940226976,1.48270228,3646.6,3646.5,2.74235]
[1732940227479,0.1,3647.3,3647.2,2.74182]
[1732940228327,0.1,3647.5,3647.2,2.74182]
[1732940228926,0.1,3647.5,3647.4,2.74167]
[1732940229323,1.7447,3647.5,3647.4,2.74167]
[1732940229755,1.7447,3647.5,3646.2,2.74257]
[1732940229756,0.1,3647.3,3647.0,2.74192]
[1732940229969,0.55,3647.0,3646.9,2.74205]
[1732940239103,0.55,3647.0,3646.7,2.74214]
[1732940239104,0.68427468,3647.0,3646.7,2.74214]
[1732940239312,2.1947,3646.4,3646.2,2.74252]
[1732940239648,1.33725018,3646.4,3645.4,1.6075]
[1732940239963,2.10131105,3647.0,3645.8,2.74286]
[1732940239964,0.2,3646.0,3645.8,2.74286]
[1732940240117,0.2,3646.0,3645.8,2.74284]
[1732940241657,0.2,3646.0,3645.9,2.7428]
[1732940241817,0.51167261,3646.0,3645.9,2.7428]
[1732940242614,1.6447,3645.9,3645.7,2.74295]
[1732940243032,1.6447,3645.9,3645.8,2.74288]
[1732940243936,2.1947,3645.9,3645.8,2.74288]
[1732940244130,1.6447,3645.9,3645.8,2.74288]
[1732940247369,2.1947,3646.5,3645.6,2.74301]
[1732940247535,2.4893663,3646.5,3646.1,2.74259]
[1732940248268,0.55,3646.3,3645.9,2.74276]
[1732940248477,0.55,3646.3,3646.2,2.74257]
[1732940249331,0.55,3646.3,3646.1,2.7426]
[1732940251296,0.55,3646.3,3646.2,2.74258]
[1732940251460,1.6319,3646.7,3646.6,2.74228]
[1732940251657,0.1,3648.4,3646.6,2.74228]
[1732940251658,1.6319,3647.4,3646.6,4.33746]
[1732940251858,2.18679393,3647.4,3647.1,2.74188]
[1732940252080,1.85057939,3647.4,3647.1,2.74188]
[1732940252458,1.6319,3647.6,3646.4,2.74236]
[1732940252663,1.6319,3647.6,3647.4,2.74165]
[1732940253059,0.55,3647.5,3647.4,2.74165]
[1732940253260,1.6319,3647.6,3647.4,2.74165]
[1732940253565,1.6319,3647.6,3647.4,2.74161]
[1732940254193,2.18849522,3648.0,3647.1,1.5952]
[1732940254397,1.6319,3648.0,3647.1,4.33704]
[1732940254720,1.6319,3648.0,3647.6,2.74146]
[1732940254996,2.90664817,3648.0,3647.6,2.74146]
[1732940255398,2.90664817,3648.0,3647.8,2.74137]
[1732940255761,0.55,3647.9,3647.6,2.74146]
[1732940256298,0.55,3647.9,3647.7,2.74144]
[1732940256793,0.55,3647.9,3647.1,2.7419]
[1732940256999,0.55,3647.9,3647.5,2.7416]
[1732940257301,1.10579592,3647.9,3647.3,2.74173]
[1732940257506,1.10579592,3647.9,3647.4,2.74166]
[1732940257797,0.55,3647.6,3646.4,2.74239]
[1732940257962,0.55,3647.4,3647.1,2.74188]
[1732940258157,0.55,3647.4,3647.1,2.74184]
[1732940258600,0.55,3647.5,3647.1,2.74184]
[1732940258799,0.55,3647.3,3646.6,2.74223]
[1732940259163,1.6319,3646.9,3646.3,2.74244]
[1732940259366,0.58428168,3646.8,3646.3,2.74244]
[1732940260765,0.55,3646.8,3646.4,2.74242]
[1732940261798,0.03428121,3646.7,3646.1,2.74265]
[1732940262129,0.55,3646.6,3646.1,2.74265]
[1732940262308,1.6319,3646.4,3645.6,1.5952]
[1732940262491,1.6319,3646.4,3646.3,2.7425]
[1732940262989,1.6319,3646.6,3646.5,2.74235]
[1732940263301,2.1819,3646.6,3646.5,2.74235]
[1732940263505,0.55,3646.8,3646.5,2.74235]
[1732940263710,0.55,3646.8,3646.6,2.74225]
[1732940265087,0.55,3646.8,3646.4,2.74238]
[1732940265686,0.55,3646.6,3646.1,2.74258]
[1732940266294,0.55,3646.6,3646.3,2.74244]
[1732940266604,0.55,3646.6,3646.1,2.7426]
[1732940266979,0.55,3646.6,3646.2,2.74257]
[1732940267200,0.55,3646.6,3646.5,2.74235]
[1732940267994,0.55,3646.6,3612.7,37.68841739]
[1732940267995,0.55,3646.4,3645.5,2.7431]
[1732940268292,0.55,3646.2,3645.2,1.5081]
[1732940268487,0.55,3646.2,3646.1,2.74265]
[1732940268681,8.98,3646.9,3645.5,2.74306]
[1732940268682,2.1417,3646.8,3646.2,2.74258]
[1732940268881,2.44266781,3646.8,3646.2,2.74258]
[1732940269115,2.44266781,3646.8,3646.4,2.74237]
[1732940270317,2.44266781,3646.8,3646.2,2.74258]
[1732940270318,2.1417,3646.8,3646.5,2.74234]
[1732940270486,0.55579592,3647.9,3645.9,2.7428]
[1732940270487,1.5917,3647.4,3646.2,8.22774]
[1732940270689,1.5917,3647.4,3646.0,2.74273]
[1732940270690,1.5917,3647.4,3647.3,2.74175]
[1732940271481,1.5917,3647.7,3647.3,2.74175]
[1732940271806,0.55,3647.6,3647.5,2.7416]
[1732940272012,1.5917,3647.7,3647.5,2.7416]
[1732940272216,1.5917,3648.0,3647.6,2.74152]
[1732940272418,1.97501579,3648.0,3647.6,2.74152]
[1732940272624,1.5917,3648.0,3647.6,2.74152]
[1732940273127,1.5917,3648.0,3647.5,2.7416]
[1732940273128,1.5917,3648.0,3647.7,2.74142]
[1732940273435,0.55,3647.9,3647.2,2.74176]
[1732940273586,0.55,3647.9,3647.3,2.74173]
[1732940273787,0.55,3647.7,3647.1,2.74187]
[1732940273986,0.55,3647.7,3645.7,2.74292]
[1732940273987,2.10131105,3647.3,3645.9,1.5081]
[1732940274211,2.10131105,3647.3,3646.3,2.74246]
[1732940274212,0.55,3647.0,3646.3,2.74246]
[1732940274412,0.55,3646.8,3646.3,2.74246]
[1732940274639,0.55,3646.8,3646.0,2.74272]
[1732940274640,0.55,3646.6,3646.2,2.74256]
[1732940274786,0.55,3646.6,3646.0,2.74272]
[1732940275333,1.02930111,3646.6,3645.8,2.74286]
[1732940275940,2.10131105,3646.5,3645.8,2.74286]
[1732940276116,0.55,3646.4,3645.3,1.5081]
[1732940276311,0.55,3646.2,3645.3,1.5081]
[1732940276510,0.03428547,3646.1,3645.3,1.5081]
[1732940276705,0.55,3646.3,3645.3,1.5081]
[1732940276922,0.03428545,3646.2,3645.3,1.5081]
[1732940277120,1.5917,3646.0,3645.0,100.0]
[1732940277318,0.03428801,3645.9,3645.0,100.0]
[1732940278024,0.55,3645.8,3645.0,100.0]
[1732940278220,0.55,3645.9,3645.0,100.0]
[1732940278926,0.55,3645.9,3645.4,2.74311]
[1732940279718,0.55,3645.9,3645.6,2.743]
[1732940280844,0.55,3645.9,3645.7,2.74295]
[1732940281347,0.55,3645.9,3645.5,2.74307]
[1732940281558,0.55,3645.9,3645.6,2.743]
[1732940282050,0.55,3645.9,3645.5,2.7431]
[1732940282214,0.55,3645.9,3645.7,2.74293]
[1732940282551,0.51359054,3646.6,3645.7,2.74293]
[1732940282552,1.5917,3647.2,3646.1,2.74265]
[1732940282847,1.26730111,3647.1,3647.0,2.74197]
[1732940283020,4.0,3647.1,3647.0,2.74197]
[1732940283215,4.0,3647.1,3646.6,2.74227]
[1732940283427,0.03427863,3647.1,3646.6,2.74227]
[1732940283629,9.01427863,3647.1,3645.7,1.5081]
[1732940283846,0.03428295,3647.0,3646.4,2.74242]
[1732940284052,0.55,3646.8,3646.4,2.74242]
[1732940284353,0.55,3646.6,3646.2,2.74255]
[1732940284689,0.55,3646.4,3646.3,2.7425]
[1732940284949,1.5917,3647.2,3645.7,4.264828]
[1732940285275,2.74107,3648.2,3645.7,4.264828]
[1732940285276,10.5717,3647.6,3647.2,2.7418]
[1732940285550,10.5717,3647.6,3646.9,2.74202]
[1732940285727,10.5717,3647.6,3647.0,2.74191]
[1732940286449,1.5917,3647.6,3646.6,2.74228]
[1732940286615,1.5917,3647.6,3647.3,2.74175]
[1732940286816,10.5717,3647.9,3646.5,1.5081]
[1732940287352,0.0342718,3647.8,3647.6,2.74152]
[1732940288312,0.55,3647.7,3647.6,2.74152]
[1732940288534,0.55,3647.7,3647.4,2.74165]
[1732940288884,0.55,3647.5,3647.4,2.74165]
[1732940289469,0.55,3647.8,3647.5,2.74158]
[1732940289862,0.55,3647.8,3647.7,2.74145]
[1732940290069,0.55,3647.8,3647.5,2.74158]
[1732940291479,0.58427157,3647.8,3647.5,2.74158]
[1732940291774,0.76759716,3647.8,3647.5,2.74158]
[1732940292131,0.80186873,3647.8,3647.5,2.74158]
[1732940292337,0.76759716,3647.8,3647.5,2.74158]
[1732940293339,0.55,3648.0,3647.7,2.74145]
[1732940293538,0.55,3648.1,3647.7,2.74145]
[1732940293734,0.55,3648.1,3647.5,2.7416]
[1732940293938,0.55,3648.1,3647.8,2.74134]
[1732940294249,1.86942111,3648.1,3647.9,2.74123]
[1732940294778,1.86942111,3648.1,3647.9,2.74129]
[1732940294964,1.86942111,3648.1,3648.0,2.74122]
[1732940295166,1.5629,3648.3,3648.0,2.74122]
[1732940296376,1.5629,3648.3,3647.8,2.74135]
[1732940296377,1.5629,3648.3,3647.8,2.74131]
[1732940296575,1.5629,3648.3,3647.6,2.7415]
[1732940296576,1.5629,3648.3,3647.9,2.74128]
[1732940296802,0.55,3648.2,3647.8,2.74137]
[1732940297086,0.55,3648.2,3647.9,2.74124]
[1732940297382,0.55,3648.2,3648.0,2.74121]
[1732940298166,0.55,3648.2,3648.1,2.74115]
[1732940298682,0.13911617,3648.5,3648.1,2.74115]
[1732940298997,0.1422931,3648.8,3648.7,2.7407]
[1732940299150,1.5629,3649.2,3648.3,2.741]
[1732940299461,1.5629,3649.2,3648.2,1.5588]
[1732940299462,1.5629,3649.2,3648.8,2.74061]
[1732940299658,2.73968,3650.1,3648.2,1.5588]
[1732940299659,8.98,3649.7,3649.1,2.7404]
[1732940299878,11.08131105,3649.7,3649.2,2.74031]
[1732940300083,1.5629,3649.6,3649.0,2.74043]
[1732940300293,1.5629,3649.6,3649.1,2.74037]
[1732940300494,2.8273211,3649.6,3649.1,2.74037]
[1732940300885,1.10319685,3649.5,3649.1,2.74037]
[1732940301563,1.10319685,3649.5,3648.9,2.74054]
[1732940301794,1.10319685,3649.5,3649.0,2.74045]
[1732940302007,0.55,3649.5,3649.0,2.74045]
[1732940302306,2.8273211,3649.6,3647.9,2.7413]
[1732940302307,1.5629,3649.6,3648.9,1.5588]
[1732940302501,0.03425611,3649.5,3648.8,2.74058]
[1732940302700,0.15629,3649.5,3649.2,2.74032]
[1732940303068,1.5629,3649.6,3649.2,2.74032]
[1732940303773,0.55,3649.5,3649.2,2.74032]
[1732940305896,0.55,3649.6,3648.8,1.5588]
[1732940306294,2.20935215,3649.9,3648.8,1.5588]
[1732940306295,0.55,3649.8,3648.8,1.5588]
[1732940306514,0.55,3649.8,3649.7,2.73995]
[1732940306877,1.39819493,3649.8,3648.8,1.5588]
[1732940307215,0.03425233,3649.7,3649.4,2.74015]
[1732940307428,1.39819493,3649.8,3649.5,2.74009]
[1732940308433,0.55,3649.7,3649.5,2.74009]
[1732940308735,1.39819493,3649.8,3648.8,1.5588]
[1732940308736,0.03425285,3649.6,3648.8,1.5588]
[1732940309833,0.03425244,3649.7,3648.8,1.5588]
[1732940310029,0.55,3649.6,3648.8,1.5588]
[1732940310334,0.55,3649.4,3648.8,1.5588]
[1732940310508,0.03425451,3649.3,3648.8,1.5588]
[1732940311133,0.55,3649.4,3648.8,1.5588]
[1732940311495,0.55,3649.4,3649.3,2.74025]
[1732940312617,2.20935215,3649.9,3649.3,2.74025]
[1732940312808,0.55,3649.8,3649.3,2.74025]
[1732940313135,0.55,3649.6,3649.3,2.74025]
[1732940313306,0.03425399,3649.5,3648.8,1.5588]
[1732940313507,0.55,3649.8,3648.8,1.5588]
[1732940314243,1.7153181,3650.7,3649.8,1.639]
[1732940314436,8.98,3650.9,3650.8,2.73912]
[1732940314597,8.98,3650.9,3650.6,2.73927]
[1732940314802,8.98,3650.9,3649.8,1.639]
[1732940315217,0.55851216,3651.0,3649.9,0.01371211]
[1732940315407,0.55851216,3651.0,3649.8,1.639]
[1732940315607,0.77168338,3651.0,3649.8,1.639]
[1732940315905,0.21317122,3651.0,3649.8,1.639]
[1732940317313,0.55,3650.9,3649.8,1.639]
[1732940318138,0.55,3651.1,3649.8,1.639]
[1732940318451,0.55,3651.3,3649.5,1.65270478]
[1732940319353,0.55,3651.3,3649.5,1.639]
[1732940319659,0.55,3651.1,3649.5,1.639]
[1732940319817,0.55,3650.7,3649.5,1.639]
[1732940320022,1.5732,3650.8,3649.5,1.639]
[1732940320023,0.55,3650.5,3649.5,1.639]
[1732940320273,0.55,3650.7,3649.5,1.639]
[1732940322159,0.55,3650.5,3649.5,1.639]
[1732940322524,0.55,3650.7,3649.5,1.639]
[1732940323043,0.55,3650.5,3649.5,1.639]
[1732940323653,0.55,3650.7,3649.5,1.639]
[1732940323953,0.03424539,3650.5,3649.5,1.639]
[1732940324859,0.55,3650.7,3649.5,1.639]
[1732940324860,0.58424401,3650.4,3649.5,1.639]
[1732940325068,0.55,3650.2,3648.3,1.633]
[1732940325356,1.6467,3650.3,3648.3,1.633]
[1732940325357,0.55,3650.0,3648.3,1.633]
[1732940326066,0.55,3649.8,3648.3,1.633]
[1732940326374,0.55,3649.6,3648.3,1.633]
[1732940326540,0.03425367,3649.5,3648.3,1.633]
[1732940327247,0.55,3649.4,3648.3,1.633]
[1732940327453,0.03425557,3649.3,3648.3,1.633]
[1732940328171,0.55,3649.5,3648.3,1.633]
[1732940328467,0.58425558,3649.5,3648.3,1.633]
[1732940328668,0.55,3649.5,3648.3,1.633]
[1732940328843,0.55,3649.8,3648.3,1.633]
[1732940329169,0.55,3649.6,3648.3,1.633]
[1732940329470,0.55,3649.4,3648.3,1.633]
[1732940329674,0.55,3649.6,3648.3,1.633]
[1732940331249,0.55,3649.4,3648.3,1.633]
[1732940331451,0.03425557,3649.3,3648.3,1.633]
[1732940331785,0.55,3649.2,3648.3,1.633]
[1732940332681,0.03425774,3649.9,3648.3,1.633]
[1732940332682,0.55,3649.3,3648.3,1.633]
[1732940332980,0.55,3649.1,3648.3,1.633]
[1732940333140,0.55,3648.9,3648.3,1.633]
[1732940333538,0.55,3649.2,3649.1,2.74038]
[1732940334794,0.55,3649.3,3649.1,1.6586]
[1732940334972,8.98,3649.9,3649.1,1.6586]
[1732940335141,1.6578,3650.4,3650.0,2.73972]
[1732940335344,1.06378,3650.3,3650.0,2.73972]
[1732940335577,1.06378,3650.3,3649.8,2.73987]
[1732940335783,0.03424823,3650.2,3649.7,2.73992]
[1732940336081,1.06378,3650.3,3649.9,2.73975]
[1732940336581,1.06378,3650.3,3650.0,2.73971]
[1732940337281,0.55,3650.2,3650.0,2.73971]
[1732940338617,0.55,3650.2,3649.7,2.7399]
[1732940338772,0.55,3650.2,3650.0,2.7397]
[1732940339385,0.55,3650.2,3649.8,2.73987]
[1732940339601,0.55,3650.0,3649.8,2.73987]
[1732940339910,0.55,3649.8,3649.1,1.6586]
[1732940340223,0.55,3649.6,3649.1,1.6586]
[1732940340371,0.55,3649.4,3648.2,1.6586]
[1732940340716,0.58425698,3649.4,3648.2,1.6586]
[1732940341086,0.80846268,3649.4,3648.2,1.6586]
[1732940342196,0.55,3649.2,3648.2,1.6586]
[1732940342377,0.55,3649.0,3648.2,1.6586]
[1732940342573,1.6578,3649.3,3648.2,1.6586]
[1732940342574,0.55,3648.8,3648.2,1.6586]
[1732940342881,0.55,3649.1,3648.2,1.6586]
[1732940343620,0.55,3649.3,3648.2,1.6586]
[1732940344130,8.98,3649.9,3647.9,1.6586]
[1732940344413,0.03425418,3649.8,3648.4,1.6586]
[1732940344575,0.03425418,3649.8,3649.7,2.73994]
[1732940344772,0.03424996,3650.0,3649.8,2.73987]
[1732940345021,3.75911105,3650.4,3649.8,2.73986]
[1732940345264,0.37591111,3650.3,3649.2,1.6586]
[1732940345961,1.6578,3650.4,3649.2,1.6586]
[1732940346328,0.58425001,3650.3,3649.2,1.6586]
[1732940346559,0.55,3650.3,3649.2,1.6586]
[1732940347965,0.55,3650.1,3649.2,1.6586]
[1732940348168,0.55,3649.9,3649.2,1.6586]
[1732940348463,0.55,3649.7,3649.2,1.6586]
[1732940348848,0.55,3649.9,3649.2,1.6586]
[1732940349235,0.55,3650.2,3649.2,1.6586]
[1732940349452,0.55,3650.0,3649.2,1.6586]
[1732940349646,0.03425142,3649.9,3649.2,1.6586]
[1732940349853,0.55,3649.8,3649.2,1.6586]
[1732940350057,0.55,3649.6,3649.2,1.6586]
[1732940350646,0.55,3649.9,3649.2,1.6586]
[1732940350838,0.55,3649.7,3649.2,1.6586]
[1732940351038,0.55,3650.0,3649.2,1.6586]
[1732940351974,0.55,3649.8,3649.2,1.6586]
[1732940352178,0.55,3649.6,3649.2,1.6586]
[1732940352680,0.55,3649.4,3648.2,1.5806]
[1732940352916,2.2037,3649.6,3648.2,1.5806]
[1732940352917,0.55,3649.2,3648.2,1.5806]
[1732940353978,0.58425849,3649.2,3648.2,1.5806]
[1732940354181,0.55,3649.2,3648.2,1.5806]
[1732940360283,0.55,3649.0,3648.2,1.5806]
[1732940360485,0.55,3648.8,3647.1,1.86560439]
[1732940360684,0.55,3648.6,3647.1,1.86560439]
[1732940361000,0.55,3648.2,3647.1,1.86560439]
[1732940361296,0.55,3648.0,3647.1,1.5806]
[1732940361605,0.55,3647.8,3647.1,1.5806]
[1732940362260,8.98,3648.6,3647.3,1.5806]
[1732940363558,0.55,3648.5,3647.3,1.5806]
[1732940365450,0.55,3648.5,3647.4,1.5806]
[1732940366689,0.55,3648.7,3647.4,1.5806]
[1732940366991,0.55,3648.5,3647.4,1.5806]
[1732940367553,0.55,3648.6,3647.4,1.5806]
[1732940368253,0.55,3648.7,3647.4,1.5806]
[1732940368853,0.55,3649.0,3648.8,2.74057]
[1732940369078,0.77343614,3648.9,3648.8,2.74057]
[1732940371408,0.55,3649.0,3648.8,2.74057]
[1732940372057,0.55,3649.0,3648.6,2.74076]
[1732940372258,0.55,3648.8,3648.6,2.74076]
[1732940372495,0.55,3648.8,3647.8,1.5482]
[1732940372786,0.55,3648.6,3647.8,1.5482]
[1732940372989,0.55,3648.4,3647.8,1.5482]
[1732940374401,0.55,3648.4,3646.5,0.65]
[1732940374402,0.55,3648.2,3647.3,1.5482]
[1732940374699,0.55,3648.0,3647.3,1.5482]
[1732940374857,1.6501,3648.3,3647.9,2.7413]
[1732940375055,0.55,3648.2,3647.4,2.74167]
[1732940375293,0.55,3648.2,3647.9,2.74124]
[1732940375455,0.55,3648.0,3647.9,2.74124]
[1732940375887,0.55,3648.0,3647.5,2.74158]
[1732940376092,0.03426831,3648.1,3648.0,2.74122]
[1732940376093,0.55,3648.1,3648.0,2.74122]
[1732940377286,0.55,3648.2,3648.1,2.74115]
[1732940377601,8.98,3648.7,3646.9,2.74202]
[1732940377602,1.6501,3648.7,3648.6,2.74077]
[1732940377773,1.6501,3649.0,3648.8,2.74057]
[1732940377954,2.95112063,3649.0,3648.9,2.74055]
[1732940378158,8.98,3649.2,3649.1,2.7404]
[1732940380399,9.53,3649.2,3649.1,2.7404]
[1732940382304,0.55,3649.0,3648.7,2.74065]
[1732940382481,0.55,3648.8,3648.7,2.74064]
[1732940383571,0.03426019,3648.8,3648.7,2.74064]
[1732940383759,0.58426019,3648.8,3648.7,2.74064]
[1732940385402,0.80769621,3648.8,3648.5,2.74084]
[1732940385607,0.55,3648.7,3648.6,2.74077]
[1732940387587,0.55,3649.0,3648.0,1.5482]
[1732940387787,0.55,3649.0,3648.9,2.74049]
[1732940397217,0.401868,3649.0,3648.9,2.74049]
[1732940398012,0.2787952,3649.3,3649.2,2.74032]
[1732940399271,0.8287952,3649.3,3649.2,2.74032]
[1732940399696,0.55,3649.3,3649.2,2.74032]
[1732940402564,1.6449,3650.3,3649.3,1.548]
[1732940402864,1.6449,3650.3,3650.2,2.73957]
[1732940404032,0.55,3650.2,3650.0,2.73969]
[1732940404359,0.58424824,3650.1,3650.0,2.73969]
[1732940404660,0.55,3650.0,3649.3,4.28819]
[1732940404863,0.55,3649.8,3649.3,1.548]
[1732940405324,0.55,3650.0,3649.3,1.548]
[1732940405512,0.55,3649.8,3649.3,1.548]
[1732940405916,0.55,3650.0,3649.3,1.548]
[1732940406159,0.55,3649.8,3649.3,1.548]
[1732940406522,0.55,3650.1,3649.3,1.548]
[1732940406716,0.55,3649.9,3649.3,1.548]
[1732940406922,0.55,3649.7,3649.3,1.548]
[1732940407485,0.55,3649.5,3649.3,1.548]
[1732940407755,0.55,3649.5,3648.4,2.74089]
[1732940407756,0.55,3649.5,3648.5,1.5502]
[1732940408169,1.5771,3649.2,3647.6,1.5221]
[1732940408314,0.58426075,3649.1,3647.6,1.5221]
[1732940409434,0.55,3648.7,3647.6,1.5221]
[1732940409641,0.55,3648.3,3646.7,1.5221]
[1732940409963,0.55,3648.3,3646.7,1.53586493]
[1732940410114,0.55,3648.3,3646.7,1.5221]
[1732940410320,0.55,3648.1,3646.7,1.5221]
[1732940410522,0.55,3647.9,3646.7,1.5221]
[1732940410828,0.55,3647.7,3646.7,1.5221]
[1732940411029,0.55,3647.5,3646.7,1.5221]
[1732940412598,0.55,3647.6,3646.7,1.5221]
[1732940412873,0.55,3647.4,3646.7,1.5221]